fUST/lending_fUST_20251016
["ID","MTS","AMOUNT","RATE_DAILY","PERIOD"]
[391341255,1760548232314,-113.76563646,0.00024598,2]
[391341258,1760548232326,-270.0,0.00024598,2]
[391341260,1760548232337,-343.83436354,0.00024598,2]
[391341262,1760548232350,-856.16563646,0.00024598,2]
[391341264,1760548232361,-300.0,0.00024599,2]
[391341266,1760548232373,-88.93713347,0.000246,2]
[391341268,1760548232386,-3533.5411365,0.000246,2]
[391341271,1760548232400,-1479.48361212,0.000246,2]
[391341273,1760548232413,-1777.22561697,0.000246,2]
[391341275,1760548232427,-9466.7454951,0.000246,2]
[391341277,1760548232441,-3827.25718664,0.000246,2]
[391341280,1760548232460,-1319.39783097,0.000246,2]
[391341283,1760548232473,-682.79400798,0.000246,2]
[391341471,1760548238189,-2550.15104603,0.000246,2]
[391341472,1760548238202,-2450.88552906,0.000246,2]
[391341473,1760548238244,-14306.68472217,0.000246,2]
[391341474,1760548238255,-533.3502663,0.00024905,2]
[391341475,1760548238266,-192.159,0.00025005,8]
[391341476,1760548238277,-150.0,0.00025306,2]
[391341477,1760548238289,-533.35026624,0.00025689,2]
[391341478,1760548238301,-533.35026624,0.00026473,2]
[391341479,1760548238313,-150.0,0.00026511,2]
[391341480,1760548238327,-300.0,0.00026659,2]
[391341481,1760548238339,-474.849451,0.00026676,2]
[391341482,1760548238353,-533.35026624,0.00027257,2]
[391341483,1760548238365,-150.0,0.00027716,2]
[391341484,1760548238378,-153.37282182,0.00028,5]
[391341485,1760548238390,-533.35026624,0.00028042,2]
[391341486,1760548238402,-500.0,0.00028808,7]
[391341487,1760548238414,-533.35026624,0.00028826,2]
[391341488,1760548238426,-150.0,0.00028887,2]
[391341489,1760548238438,-103.61620098,0.00029068,30]
[391341490,1760548238452,-288.64063242,0.00029068,30]
[391341491,1760548238463,-469.88268426,0.000295,2]
[391341511,1760548243459,-1001.9181525,0.0002411,12]
[391341512,1760548243471,-1105.50473436,0.000295,2]
[391341513,1760548243482,-205.1561161,0.00029504,7]
[391341514,1760548243630,-202.169372,0.00029578,2]
[391341515,1760548243642,-250.0,0.00029578,2]
[391341516,1760548243652,-250.0,0.00029578,2]
[391341517,1760548243661,-250.0,0.00029578,2]
[391341518,1760548243671,-250.0,0.00029578,2]
[391341519,1760548243680,-250.0,0.00029578,2]
[391341520,1760548243689,-250.0,0.00029578,2]
[391341521,1760548243698,-2999.0,0.00029586,2]
[391341522,1760548243707,-469.63,0.00029586,10]
[391341523,1760548243716,-441.50617652,0.00029586,2]
[391341533,1760548246367,-3315.72156004,0.000295,2]
[391341534,1760548246377,-7791.42843992,0.00029586,2]
[391341535,1760548246388,-6037.34896303,0.00029586,2]
[391341571,1760549308202,2410.9,0.0001891,2]
[391341575,1760549349404,302.45563732,0.000189,2]
[391341617,1760549432302,-302.45563732,0.00019089,2]
[391341619,1760549432312,-302.45563732,0.00019278,2]
[391341621,1760549432321,-302.45563732,0.00019467,2]
[391341622,1760549432331,-287.31643604,0.00019656,2]
[391341634,1760549438244,-15.13920128,0.00019656,2]
[391341636,1760549438255,-152.19474933,0.00019845,4]
[391341637,1760549438266,-150.0,0.00024287,2]
[391341639,1760549438281,-150.0,0.00024287,2]
[391341641,1760549438292,-176.02715792,0.00024887,2]
[391341643,1760549438309,-250.0,0.00027185,2]
[391341644,1760549438322,-1000.0,0.00027236,30]
[391341645,1760549438333,-164.507498,0.00027362,2]
[391341646,1760549438346,-168.85,0.00027755,15]
[391341647,1760549438358,-168.85,0.00027855,15]
[391341648,1760549438369,-168.85,0.00027955,15]
[391341649,1760549438383,-143.47432512,0.00028055,15]
[391341650,1760549438402,-25.37567488,0.00028055,15]
[391341651,1760549438415,-168.86,0.00028155,15]
[391341652,1760549438429,-75.42574311,0.00028543,2]
[391341974,1760549443422,-905.57425689,0.00028543,2]
[391341976,1760549443434,-2161.0,0.00028543,2]
[391341978,1760549443443,-631.0,0.00028543,2]
[391341980,1760549443453,-411.0,0.00028543,2]
[391341982,1760549443462,-500.0,0.00028808,7]
[391341984,1760549443472,-202.67,0.00029,21]
[391341986,1760549443481,-326.0567228,0.00029096,30]
[391341988,1760549443491,-163.0283614,0.00029096,30]
[391341990,1760549443500,-163.0283614,0.00029096,30]
[391341992,1760549443511,-328.9212902,0.00029096,30]
[391341993,1760549443520,-184.0,0.00029144,2]
[391341995,1760549443529,-184.0,0.00029153,7]
[391341997,1760549443538,-184.0,0.00029318,7]
[391341999,1760549443548,-6698.1976477,0.00029329,4]
[391342001,1760549443557,-6698.16,0.00029376,4]
[391342003,1760549443566,-184.0,0.00029398,7]
[391342005,1760549443576,-184.88,0.00029418,22]
[391342007,1760549443585,-3046.37724804,0.00029418,2]
[391342009,1760549443596,-3046.377248,0.00029459,2]
[391342011,1760549443605,-670.7,0.00029466,3]
[391342013,1760549443615,-391.36,0.00029466,10]
[391342015,1760549443624,-326.13,0.00029466,10]
[391342017,1760549443633,-662.427304,0.00029469,2]
[391342019,1760549443642,-5131.52074922,0.00029469,2]
[391342021,1760549443651,-500.0,0.00029475,2]
[391342023,1760549443662,-182.28759851,0.00029475,2]
[391342025,1760549443671,-336.71129293,0.00029475,2]
[391342027,1760549443681,-366.24086806,0.00029475,2]
[391342029,1760549443690,-218.66787928,0.00029475,2]
[391342031,1760549443699,-183.41899847,0.00029475,2]
[391342033,1760549443708,-500.0,0.00029475,2]
[391342035,1760549443717,-257.23099803,0.00029475,2]
[391342037,1760549443726,-500.0,0.00029475,2]
[391342039,1760549443737,-500.0,0.00029475,2]
[391342041,1760549443747,-273.12911458,0.00029475,2]
[391342043,1760549443757,-199.0,0.00029476,7]
[391342045,1760549443766,-2999.0,0.00029476,2]
[391342047,1760549443775,-113034.958906,0.00029476,2]
[391342049,1760549443785,-6560.77996,0.00029476,2]
[391342051,1760549443794,-200.0,0.00029485,10]
[391342053,1760549443804,-306.7482817,0.00029485,10]
[391342055,1760549443813,-151.0,0.00029486,30]
[391342057,1760549443823,-151.0,0.00029486,7]
[391342059,1760549443832,-151.0,0.00029486,7]
[391342061,1760549443841,-151.0,0.00029486,7]
[391342063,1760549443850,-151.0,0.00029486,7]
[391342065,1760549443860,-151.0,0.00029486,30]
[391342067,1760549443869,-151.0,0.00029486,30]
[391342069,1760549443879,-151.0,0.00029486,30]
[391342071,1760549443888,-151.0,0.00029486,30]
[391342073,1760549443897,-151.0,0.00029486,30]
[391342075,1760549443906,-151.0,0.00029486,30]
[391342077,1760549443916,-245.789108,0.00029486,30]
[391342079,1760549443925,-196.175422,0.00029486,30]
[391342081,1760549443934,-196.175422,0.00029486,30]
[391342082,1760549443943,-196.175422,0.00029486,30]
[391342084,1760549443952,-196.175422,0.00029486,30]
[391342086,1760549443962,-151.0,0.00029486,30]
[391342088,1760549443971,-151.0,0.00029486,30]
[391342090,1760549443980,-151.394924,0.00029486,30]
[391342092,1760549443992,-151.0,0.00029486,30]
[391342094,1760549444001,-151.0,0.00029486,30]
[391342096,1760549444011,-151.0,0.00029486,30]
[391342098,1760549444020,-151.0,0.00029486,30]
[391342100,1760549444030,-151.0,0.00029486,30]
[391342102,1760549444039,-151.0,0.00029486,30]
[391342104,1760549444049,-151.0,0.00029486,30]
[391342106,1760549444059,-151.0,0.00029486,30]
[391342108,1760549444069,-151.0,0.00029486,30]
[391342110,1760549444078,-151.0,0.00029486,30]
[391342112,1760549444087,-151.0,0.00029486,30]
[391342114,1760549444105,-151.0,0.00029486,30]
[391342116,1760549444117,-151.0,0.00029486,30]
[391342118,1760549444126,-151.0,0.00029486,30]
[391342120,1760549444136,-151.0,0.00029486,30]
[391342122,1760549444146,-151.905569,0.00029486,30]
[391342124,1760549444156,-151.0,0.00029486,30]
[391342126,1760549444166,-151.0,0.00029486,30]
[391342128,1760549444176,-151.0,0.00029486,30]
[391342130,1760549444186,-154.680216,0.00029486,30]
[391342132,1760549444196,-151.0,0.00029486,30]
[391342134,1760549444206,-1217.204435,0.00029486,30]
[391342136,1760549444217,-1217.204435,0.00029486,30]
[391342138,1760549444227,-1217.204435,0.00029486,30]
[391342140,1760549444239,-1217.204435,0.00029486,30]
[391342142,1760549444249,-151.0,0.00029486,30]
[391342144,1760549444259,-151.0,0.00029486,30]
[391342146,1760549444269,-151.0,0.00029486,30]
[391342148,1760549444278,-151.0,0.00029486,30]
[391342150,1760549444288,-151.0,0.00029486,30]
[391342152,1760549444298,-277.785105,0.00029486,30]
[391342154,1760549444308,-151.0,0.00029486,30]
[391342156,1760549444318,-161.510434,0.00029486,30]
[391342158,1760549444340,-196.42784,0.00029486,30]
[391342160,1760549444350,-161.510434,0.00029486,30]
[391342162,1760549444361,-196.42784,0.00029486,30]
[391342164,1760549444371,-161.510434,0.00029486,30]
[391342166,1760549444381,-349098.32586588,0.00029486,2]
[391342179,1760549444508,-20901.67413412,0.00029486,2]
[391342181,1760549444518,-3046.377248,0.00029499,2]
[391342183,1760549444528,-184.0,0.00029518,2]
[391342185,1760549444537,-3046.377248,0.0002954,2]
[391342187,1760549444547,-200.0,0.00029568,10]
[391342189,1760549444556,-14129.3698632,0.00029576,2]
[391342191,1760549444566,-820.097495,0.00029576,2]
[391342193,1760549444575,-3046.377248,0.0002958,2]
[391342195,1760549444584,-18814.61336758,0.00029586,3]
[391342197,1760549444593,-151.0,0.00029586,30]
[391342199,1760549444603,-151.0,0.00029586,30]
[391342201,1760549444613,-151.0,0.00029586,30]
[391342203,1760549444625,-151.0,0.00029586,30]
[391342205,1760549444635,-190.672679,0.00029586,30]
[391342207,1760549444644,-151.0,0.00029586,30]
[391342209,1760549444654,-151.0,0.00029586,30]
[391342221,1760549444762,-153.522016,0.00029586,30]
[391342223,1760549444781,-151.0,0.00029586,30]
[391342225,1760549444798,-151.0,0.00029586,30]
[391342227,1760549444809,-151.0,0.00029586,30]
[391342229,1760549444819,-151.0,0.00029586,30]
[391342231,1760549444828,-151.0,0.00029586,30]
[391342233,1760549444838,-151.0,0.00029586,30]
[391342235,1760549444848,-151.0,0.00029586,30]
[391342237,1760549444857,-151.0,0.00029586,30]
[391342239,1760549444867,-151.0,0.00029586,30]
[391342241,1760549444878,-151.0,0.00029586,30]
[391342243,1760549444887,-191.84564194,0.00029586,30]
[391342245,1760549444896,-151.0,0.00029586,30]
[391342247,1760549444905,-151.0,0.00029586,30]
[391342249,1760549444914,-151.0,0.00029586,30]
[391342251,1760549444923,-151.0,0.00029586,30]
[391342253,1760549444932,-151.0,0.00029586,30]
[391342255,1760549444942,-151.0,0.00029586,7]
[391342257,1760549444951,-151.0,0.00029586,7]
[391342259,1760549444960,-151.0,0.00029586,7]
[391342261,1760549444970,-151.0,0.00029586,7]
[391342263,1760549444980,-151.0,0.00029586,30]
[391342265,1760549444990,-151.0,0.00029586,30]
[391342267,1760549444999,-151.0,0.00029586,30]
[391342269,1760549445009,-151.0,0.00029586,30]
[391342271,1760549445018,-151.0,0.00029586,30]
[391342273,1760549445027,-151.0,0.00029586,30]
[391342275,1760549445036,-151.0,0.00029586,30]
[391342277,1760549445045,-151.0,0.00029586,30]
[391342278,1760549445054,-178.799669,0.00029586,30]
[391342279,1760549445063,-178.799669,0.00029586,30]
[391342280,1760549445073,-178.799669,0.00029586,30]
[391342281,1760549445083,-178.799669,0.00029586,30]
[391342282,1760549445093,-196.175422,0.00029586,30]
[391342283,1760549445103,-196.175422,0.00029586,30]
[391342284,1760549445112,-196.175422,0.00029586,30]
[391342285,1760549445121,-196.175422,0.00029586,30]
[391342286,1760549445131,-151.0,0.00029586,30]
[391342287,1760549445140,-151.0,0.00029586,30]
[391342288,1760549445150,-151.0,0.00029586,30]
[391342289,1760549445159,-151.0,0.00029586,30]
[391342290,1760549445169,-151.0,0.00029586,2]
[391342291,1760549445178,-151.0,0.00029586,30]
[391342292,1760549445187,-151.0,0.00029586,30]
[391342293,1760549445196,-151.0,0.00029586,30]
[391342294,1760549445206,-151.480731,0.00029586,30]
[391342295,1760549445215,-151.0,0.00029586,30]
[391342296,1760549445224,-290.149556,0.00029586,30]
[391342297,1760549445233,-151.0,0.00029586,30]
[391342298,1760549445243,-151.0,0.00029586,30]
[391342299,1760549445252,-151.0,0.00029586,30]
[391342300,1760549445261,-151.216922,0.00029586,30]
[391342301,1760549445270,-151.0,0.00029586,30]
[391342302,1760549445280,-153.250571,0.00029586,7]
[391342303,1760549445289,-151.0,0.00029586,30]
[391342304,1760549445298,-151.0,0.00029586,30]
[391342305,1760549445307,-199.908455,0.00029586,15]
[391342306,1760549445316,-560.478171,0.00029586,30]
[391342307,1760549445325,-199.908455,0.00029586,15]
[391342308,1760549445334,-560.478171,0.00029586,30]
[391342309,1760549445344,-199.908455,0.00029586,15]
[391342310,1760549445353,-560.478171,0.00029586,30]
[391342311,1760549445362,-199.908455,0.00029586,15]
[391342312,1760549445372,-560.478171,0.00029586,30]
[391342313,1760549445381,-151.0,0.00029586,30]
[391342314,1760549445390,-151.0,0.00029586,30]
[391342315,1760549445399,-262.660974,0.00029586,30]
[391342316,1760549445409,-151.0,0.00029586,30]
[391342317,1760549445420,-151.0,0.00029586,30]
[391342318,1760549445433,-151.0,0.00029586,30]
[391342319,1760549445442,-151.0,0.00029586,30]
[391342320,1760549445451,-151.0,0.00029586,30]
[391342321,1760549445460,-151.0,0.00029586,30]
[391342322,1760549445470,-151.0,0.00029586,30]
[391342323,1760549445479,-151.0,0.00029586,30]
[391342324,1760549445490,-225.010019,0.00029586,30]
[391342325,1760549445500,-151.0,0.00029586,30]
[391342326,1760549445510,-151.0,0.00029586,30]
[391342327,1760549445519,-151.0,0.00029586,30]
[391342328,1760549445528,-151.0,0.00029586,30]
[391342329,1760549445538,-151.0,0.00029586,30]
[391342330,1760549445547,-151.0,0.00029586,30]
[391342331,1760549445557,-194.010014,0.00029586,30]
[391342332,1760549445566,-151.0,0.00029586,30]
[391342333,1760549445576,-194.010014,0.00029586,30]
[391342334,1760549445586,-194.010014,0.00029586,30]
[391342335,1760549445595,-194.010014,0.00029586,30]
[391342336,1760549445604,-151.0,0.00029586,30]
[391342337,1760549445614,-151.0,0.00029586,30]
[391342338,1760549445623,-151.0,0.00029586,30]
[391342339,1760549445633,-151.0,0.00029586,30]
[391342340,1760549445642,-151.0,0.00029586,30]
[391342341,1760549445651,-276.599498,0.00029586,30]
[391342342,1760549445660,-151.0,0.00029586,30]
[391342343,1760549445669,-153.31792213,0.00029586,30]
[391342344,1760549445681,-151.0,0.00029586,30]
[391342345,1760549445690,-175.049412,0.00029586,30]
[391342346,1760549445699,-175.049412,0.00029586,30]
[391342347,1760549445708,-175.049412,0.00029586,30]
[391342348,1760549445717,-175.049412,0.00029586,30]
[391342349,1760549445726,-151.0,0.00029586,30]
[391342350,1760549445737,-185.048924,0.00029586,30]
[391342351,1760549445747,-151.0,0.00029586,30]
[391342352,1760549445756,-151.0,0.00029586,30]
[391342353,1760549445766,-459.082157,0.00029586,30]
[391342354,1760549445775,-459.082157,0.00029586,30]
[391342355,1760549445785,-459.082157,0.00029586,30]
[391342356,1760549445794,-459.082157,0.00029586,30]
[391342357,1760549445803,-151.0,0.00029586,30]
[391342358,1760549445812,-151.0,0.00029586,30]
[391342359,1760549445822,-151.0,0.00029586,30]
[391342360,1760549445831,-151.0,0.00029586,30]
[391342361,1760549445841,-444.975503,0.00029586,30]
[391342362,1760549445851,-444.975503,0.00029586,30]
[391342363,1760549445860,-444.975503,0.00029586,30]
[391342364,1760549445869,-444.975503,0.00029586,30]
[391342365,1760549445879,-151.0,0.00029586,30]
[391342366,1760549445890,-263.93447155,0.00029586,30]
[391342367,1760549445899,-212.288045,0.00029586,30]
[391342368,1760549445909,-161.0,0.00029586,30]
[391342369,1760549445922,-212.288045,0.00029586,30]
[391342370,1760549445935,-212.288045,0.00029586,30]
[391342371,1760549445948,-151.0,0.00029586,30]
[391342372,1760549445960,-212.288045,0.00029586,30]
[391342373,1760549445972,-151.0,0.00029586,30]
[391342375,1760549445984,-151.0,0.00029586,30]
[391342376,1760549445997,-151.0,0.00029586,30]
[391342377,1760549446007,-151.0,0.00029586,30]
[391342378,1760549446020,-151.0,0.00029586,30]
[391342379,1760549446031,-151.0,0.00029586,30]
[391342380,1760549446042,-151.0,0.00029586,30]
[391342381,1760549446054,-151.0,0.00029586,30]
[391342382,1760549446067,-151.0,0.00029586,30]
[391342383,1760549446079,-151.0,0.00029586,30]
[391342384,1760549446091,-151.0,0.00029586,30]
[391342385,1760549446104,-151.0,0.00029586,30]
[391342386,1760549446116,-151.0,0.00029586,30]
[391342387,1760549446129,-151.0,0.00029586,30]
[391342388,1760549446141,-151.0,0.00029586,30]
[391342389,1760549446154,-151.0,0.00029586,30]
[391342390,1760549446166,-151.0,0.00029586,30]
[391342391,1760549446177,-151.0,0.00029586,30]
[391342392,1760549446189,-151.0,0.00029586,30]
[391342393,1760549446200,-151.0,0.00029586,30]
[391342394,1760549446211,-151.0,0.00029586,30]
[391342395,1760549446223,-151.0,0.00029586,30]
[391342396,1760549446235,-151.0,0.00029586,30]
[391342397,1760549446249,-151.0,0.00029586,30]
[391342398,1760549446260,-151.0,0.00029586,30]
[391342399,1760549446272,-151.0,0.00029586,30]
[391342400,1760549446284,-252.295863,0.00029586,30]
[391342401,1760549446296,-151.0,0.00029586,30]
[391342402,1760549446307,-151.0,0.00029586,30]
[391342403,1760549446319,-248.735712,0.00029586,30]
[391342404,1760549446330,-151.0,0.00029586,30]
[391342405,1760549446340,-151.0,0.00029586,30]
[391342406,1760549446350,-151.0,0.00029586,30]
[391342407,1760549446360,-151.0,0.00029586,30]
[391342408,1760549446371,-151.0,0.00029586,30]
[391342409,1760549446382,-151.0,0.00029586,30]
[391342410,1760549446393,-151.0,0.00029586,30]
[391342411,1760549446405,-151.0,0.00029586,30]
[391342412,1760549446417,-151.0,0.00029586,30]
[391342413,1760549446431,-153.407294,0.00029586,30]
[391342414,1760549446444,-151.0,0.00029586,30]
[391342415,1760549446455,-151.0,0.00029586,30]
[391342416,1760549446468,-1217.204435,0.00029586,30]
[391342417,1760549446480,-1217.204435,0.00029586,30]
[391342418,1760549446494,-1217.204435,0.00029586,30]
[391342419,1760549446506,-1217.204435,0.00029586,30]
[391342420,1760549446517,-1217.204435,0.00029586,30]
[391342421,1760549446529,-1217.204435,0.00029586,30]
[391342422,1760549446540,-1217.204435,0.00029586,30]
[391342423,1760549446550,-1217.204435,0.00029586,30]
[391342424,1760549446560,-151.0,0.00029586,30]
[391342425,1760549446570,-151.0,0.00029586,30]
[391342426,1760549446579,-151.0,0.00029586,30]
[391342427,1760549446589,-151.0,0.00029586,30]
[391342428,1760549446600,-151.0,0.00029586,30]
[391342429,1760549446616,-151.0,0.00029586,30]
[391342430,1760549446639,-151.0,0.00029586,30]
[391342431,1760549446659,-151.0,0.00029586,30]
[391342432,1760549446670,-151.0,0.00029586,30]
[391342433,1760549446682,-161.510434,0.00029586,30]
[391342434,1760549446692,-161.510434,0.00029586,30]
[391342436,1760549446702,-196.42784,0.00029586,30]
[391342438,1760549446713,-161.510434,0.00029586,30]
[391342439,1760549446723,-161.510434,0.00029586,30]
[391342440,1760549446735,-196.42784,0.00029586,30]
[391342442,1760549446747,-161.510434,0.00029586,30]
[391342444,1760549446758,-161.510434,0.00029586,30]
[391342445,1760549446769,-151.0,0.00029596,30]
[391342446,1760549446780,-533.35026624,0.0002961,2]
[391342448,1760549446791,-14129.3698632,0.00029629,2]
[391342449,1760549446802,-820.097495,0.00029629,2]
[391342451,1760549446812,-151.0,0.00029629,30]
[391342453,1760549446822,-151.0,0.00029629,30]
[391342454,1760549446832,-185.993006,0.00029629,30]
[391342456,1760549446842,-151.0,0.00029629,7]
[391342457,1760549446853,-151.0,0.00029629,7]
[391342458,1760549446863,-151.0,0.00029629,7]
[391342459,1760549446874,-256.380812,0.00029629,7]
[391342460,1760549446884,-151.0,0.00029629,30]
[391342461,1760549446895,-151.0,0.00029629,30]
[391342462,1760549446905,-151.0,0.00029629,30]
[391342463,1760549446915,-151.0,0.00029629,30]
[391342464,1760549446926,-151.778011,0.00029629,30]
[391342465,1760549446936,-151.0,0.00029629,30]
[391342466,1760549446947,-151.0,0.00029629,30]
[391342467,1760549446957,-151.0,0.00029629,30]
[391342468,1760549446967,-178.799669,0.00029629,30]
[391342469,1760549446979,-178.799669,0.00029629,30]
[391342470,1760549446991,-178.799669,0.00029629,30]
[391342471,1760549447001,-178.799669,0.00029629,30]
[391342472,1760549447012,-196.175422,0.00029629,30]
[391342473,1760549447023,-196.175422,0.00029629,30]
[391342475,1760549447033,-196.175422,0.00029629,30]
[391342478,1760549447044,-196.175422,0.00029629,30]
[391342479,1760549447055,-151.0,0.00029629,30]
[391342481,1760549447065,-151.0,0.00029629,30]
[391342482,1760549447076,-270.840329,0.00029629,30]
[391342484,1760549447086,-151.0,0.00029629,30]
[391342485,1760549447096,-199.908455,0.00029629,15]
[391342486,1760549447108,-560.478171,0.00029629,30]
[391342487,1760549447119,-199.908455,0.00029629,15]
[391342488,1760549447129,-560.478171,0.00029629,30]
[391342489,1760549447140,-199.908455,0.00029629,15]
[391342490,1760549447150,-560.478171,0.00029629,30]
[391342491,1760549447161,-199.908455,0.00029629,15]
[391342492,1760549447171,-560.478171,0.00029629,30]
[391342493,1760549447182,-193.017752,0.00029629,30]
[391342494,1760549447193,-151.0,0.00029629,30]
[391342495,1760549447203,-151.0,0.00029629,30]
[391342496,1760549447213,-151.0,0.00029629,30]
[391342497,1760549447224,-151.0,0.00029629,30]
[391342498,1760549447235,-151.0,0.00029629,30]
[391342499,1760549447250,-151.0,0.00029629,30]
[391342500,1760549447261,-151.0,0.00029629,30]
[391342506,1760549447390,-151.0,0.00029629,30]
[391342507,1760549447404,-151.0,0.00029629,30]
[391342508,1760549447415,-151.0,0.00029629,30]
[391342509,1760549447426,-151.0,0.00029629,30]
[391342510,1760549447436,-151.0,0.00029629,30]
[391342511,1760549447446,-194.010014,0.00029629,30]
[391342512,1760549447455,-194.010014,0.00029629,30]
[391342513,1760549447466,-194.010014,0.00029629,30]
[391342514,1760549447476,-194.010014,0.00029629,30]
[391342515,1760549447485,-151.0,0.00029629,30]
[391342516,1760549447496,-151.0,0.00029629,30]
[391342517,1760549447507,-151.0,0.00029629,30]
[391342518,1760549447517,-151.0,0.00029629,30]
[391342519,1760549447527,-151.0,0.00029629,30]
[391342520,1760549447536,-151.0,0.00029629,30]
[391342521,1760549447547,-151.341958,0.00029629,30]
[391342522,1760549447557,-175.049412,0.00029629,30]
[391342523,1760549447567,-175.049412,0.00029629,30]
[391342524,1760549447577,-175.049412,0.00029629,30]
[391342525,1760549447586,-175.049412,0.00029629,30]
[391342526,1760549447596,-151.0,0.00029629,30]
[391342527,1760549447605,-151.0,0.00029629,30]
[391342528,1760549447615,-151.0,0.00029629,30]
[391342529,1760549447625,-459.082157,0.00029629,30]
[391342530,1760549447634,-459.082157,0.00029629,30]
[391342531,1760549447643,-459.082157,0.00029629,30]
[391342532,1760549447654,-459.082157,0.00029629,30]
[391342533,1760549447663,-151.0,0.00029629,30]
[391342534,1760549447672,-151.0,0.00029629,30]
[391342535,1760549447681,-151.0,0.00029629,30]
[391342536,1760549447691,-154.55074,0.00029629,30]
[391342537,1760549447700,-444.975503,0.00029629,30]
[391342538,1760549447710,-444.975503,0.00029629,30]
[391342539,1760549447720,-444.975503,0.00029629,30]
[391342540,1760549447730,-444.975503,0.00029629,30]
[391342541,1760549447742,-151.0,0.00029629,30]
[391342542,1760549447752,-151.0,0.00029629,30]
[391342543,1760549447761,-212.288045,0.00029629,30]
[391342544,1760549447771,-212.288045,0.00029629,30]
[391342545,1760549447780,-212.288045,0.00029629,30]
[391342546,1760549447790,-151.0,0.00029629,30]
[391342547,1760549447799,-212.288045,0.00029629,30]
[391342548,1760549447808,-151.0,0.00029629,30]
[391342549,1760549447817,-151.0,0.00029629,30]
[391342550,1760549447826,-151.0,0.00029629,30]
[391342551,1760549447836,-151.0,0.00029629,30]
[391342552,1760549447846,-151.0,0.00029629,30]
[391342553,1760549447855,-151.0,0.00029629,30]
[391342554,1760549447864,-196.42784,0.00029629,30]
[391342555,1760549447874,-196.42784,0.00029629,30]
[391342556,1760549447884,-151.0,0.00029639,30]
[391342557,1760549447893,-151.0,0.00029639,30]
[391342558,1760549447903,-151.0,0.00029639,30]
[391342559,1760549447912,-151.0,0.00029639,30]
[391342560,1760549447921,-151.0,0.00029639,30]
[391342561,1760549447930,-151.0,0.00029639,30]
[391342562,1760549447939,-151.0,0.00029639,30]
[391342563,1760549447948,-151.0,0.00029639,30]
[391342564,1760549447957,-151.0,0.00029639,30]
[391342565,1760549447967,-151.0,0.00029639,30]
[391342566,1760549447977,-151.0,0.00029639,30]
[391342567,1760549447987,-151.0,0.00029639,30]
[391342568,1760549447998,-151.0,0.00029639,30]
[391342569,1760549448007,-151.0,0.00029639,30]
[391342570,1760549448016,-151.0,0.00029639,30]
[391342571,1760549448025,-151.0,0.00029639,30]
[391342572,1760549448034,-151.0,0.00029639,30]
[391342573,1760549448045,-151.0,0.00029639,7]
[391342574,1760549448055,-151.0,0.00029639,7]
[391342575,1760549448064,-151.0,0.00029639,7]
[391342576,1760549448073,-151.0,0.00029639,30]
[391342577,1760549448083,-153.74492,0.00029639,30]
[391342578,1760549448093,-151.0,0.00029639,30]
[391342579,1760549448103,-151.0,0.00029639,30]
[391342580,1760549448113,-151.0,0.00029639,30]
[391342581,1760549448123,-151.0,0.00029639,30]
[391342582,1760549448132,-178.799669,0.00029639,30]